fUSD/lending_fUSD_20241207
["ID","MTS","AMOUNT","RATE_DAILY","PERIOD"]
[344610582,1733610647874,-500.0,0.00019999,2]
[344610583,1733610647884,-635.9,0.00019999,2]
[344610584,1733610647893,-500.0,0.00019999,2]
[344610585,1733610647902,-500.0,0.00019999,2]
[344610586,1733610647911,-500.0,0.00019999,2]
[344610587,1733610647920,-436.94,0.00019999,2]
[344610588,1733610647929,-500.0,0.00019999,2]
[344610589,1733610647938,-500.0,0.00019999,2]
[344610590,1733610647947,-500.0,0.00019999,2]
[344610591,1733610647956,-500.0,0.00019999,2]
[344610592,1733610647965,-500.0,0.00019999,2]
[344610593,1733610647973,-500.0,0.00019999,2]
[344610594,1733610647982,-500.0,0.00019999,2]
[344610595,1733610647991,-500.0,0.00019999,2]
[344610596,1733610648000,-500.0,0.00019999,2]
[344610597,1733610648010,-6482.07046384,0.00019999,2]
[344610598,1733610648025,-1017.92953616,0.00019999,2]
[344610599,1733610648035,-7500.0,0.00019999,2]
[344610600,1733610648044,-7500.0,0.00019999,2]
[344610601,1733610648053,-7500.0,0.00019999,2]
[344610602,1733610648062,-7500.0,0.00019999,2]
[344610603,1733610648071,-7500.0,0.00019999,2]
[344610604,1733610648080,-500.0,0.00019999,2]
[344610605,1733610648090,-7500.0,0.00019999,2]
[344610606,1733610648099,-500.0,0.00019999,2]
[344610607,1733610648109,-500.0,0.00019999,2]
[344610608,1733610648118,-1026.90795404,0.00019999,2]
[344610609,1733610648127,-500.0,0.00019999,2]
[344610610,1733610648137,-500.0,0.00019999,2]
[344610611,1733610648147,-500.0,0.00019999,2]
[344610612,1733610648156,-500.0,0.00019999,2]
[344610613,1733610648166,-500.0,0.00019999,2]
[344610614,1733610648176,-500.0,0.00019999,2]
[344610615,1733610648186,-500.0,0.00019999,2]
[344610616,1733610648195,-500.0,0.00019999,2]
[344610617,1733610648205,-500.0,0.00019999,2]
[344610618,1733610648214,-418.94455398,0.00019999,2]
[344610619,1733610648223,-500.0,0.00019999,2]
[344610620,1733610648233,-500.0,0.00019999,2]
[344610621,1733610648242,-500.0,0.00019999,2]
[344610622,1733610648251,-500.0,0.00019999,2]
[344610623,1733610648261,-500.0,0.00019999,2]
[344610624,1733610648270,-500.0,0.00019999,2]
[344610625,1733610648280,-500.0,0.00019999,2]
[344610626,1733610648289,-837.51,0.00019999,2]
[344610627,1733610648299,-837.51,0.00019999,2]
[344610628,1733610648308,-837.51,0.00019999,2]
[344610629,1733610648317,-207.06944582,0.00019999,2]
[344610631,1733610648376,-402.52309571,0.00019999,2]
[344610643,1733611831954,-450.0,0.00013,2]
[344610644,1733611831964,-233.13481469,0.00014868,2]
[344610645,1733611832081,-2526.98245592,0.00014868,2]
[344610646,1733611832092,-138.17983992,0.00014868,2]
[344610647,1733611832102,-821.09441619,0.000149,2]
[344610648,1733611832113,-821.09441618,0.00014934,2]
[344610649,1733611832123,-333.2108241,0.00014956,2]
[344610650,1733611832135,-200.0,0.00014957,2]
[344610651,1733611832144,-200.0,0.00014957,2]
[344610652,1733611832153,-200.0,0.00014957,2]
[344610653,1733611832164,-535.46520214,0.00014959,2]
[344610654,1733611832173,-200.0,0.00014959,2]
[344610655,1733611832183,-301.1991762,0.00014959,2]
[344610656,1733611832192,-200.0,0.00014959,2]
[344610657,1733611832201,-444.28109881,0.0001496,2]
[344610658,1733611832210,-200.0,0.0001496,2]
[344610659,1733611832220,-401.59890161,0.00014961,2]
[344610660,1733611832229,-401.59890161,0.00014961,2]
[344610661,1733611832239,-200.0,0.00014961,2]
[344610662,1733611832248,-789.83306455,0.00014961,2]
[344610663,1733611832257,-301.1991762,0.00014961,2]
[344610664,1733611832266,-592.37479841,0.00014962,2]
[344610665,1733611832276,-444.28109881,0.00014962,2]
[344610666,1733611832285,-535.46520214,0.00014962,2]
[344610667,1733611832294,-200.0,0.00014962,2]
[344610668,1733611832303,-200.0,0.00014963,2]
[344610669,1733611832312,-249.90811808,0.00014963,2]
[344610670,1733611832321,-200.0,0.00014964,2]
[344610671,1733611832330,-535.46520214,0.00014965,2]
[344610672,1733611832339,-713.95360286,0.00014966,2]
[344610673,1733611832353,-200.0,0.0001497,2]
[344610674,1733611832362,-200.0,0.00014971,2]
[344610675,1733611832371,-200.0,0.00014972,2]
[344610677,1733611832380,-200.0,0.00014972,2]
[344610678,1733611832391,-200.0,0.00014972,2]
[344610680,1733611832400,-301.1991762,0.00014973,2]
[344610682,1733611832411,-200.0,0.00014973,2]
[344610684,1733611832423,-789.83306455,0.00014973,2]
[344610686,1733611832433,-401.59890161,0.00014974,2]
[344610688,1733611832442,-713.95360286,0.00014975,2]
[344610691,1733611832451,-249.90811808,0.00014976,2]
[344610695,1733611832461,-230.81895192,0.00014976,2]
[344610700,1733611832473,-213.46214689,0.00014976,2]
[344610704,1733611832483,-789.83306455,0.00014976,2]
[344610707,1733611832492,-249.90811808,0.00014976,2]
[344610708,1733611832501,-200.0,0.00014977,2]
[344610710,1733611832511,-305.98713853,0.00014977,2]
[344610713,1733611832523,-286.38765988,0.00014977,2]
[344610715,1733611832532,-200.0,0.00014977,2]
[344610717,1733611832542,-401.59890161,0.00014978,2]
[344610719,1733611832551,-200.0,0.00014978,2]
[344610720,1733611832561,-200.0,0.00014978,2]
[344610722,1733611832570,-444.28109881,0.00014978,2]
[344610724,1733611832579,-205.36967433,0.00014978,2]
[344610727,1733611832590,-20.52970782,0.00014978,2]
[344610729,1733611832600,-200.0,0.00014978,2]
[344610731,1733611832609,-45.27887694,0.00014978,2]
[344610733,1733611832621,-154.72112306,0.00014978,2]
[344610735,1733611832630,-249.90811808,0.00014979,2]
[344610737,1733611832640,-713.95360286,0.00014979,2]
[344610739,1733611832649,-333.2108241,0.00014979,2]
[344610741,1733611832659,-535.46520214,0.00014979,2]
[344610743,1733611832668,-301.1991762,0.00014979,2]
[344610745,1733611832677,-535.46520214,0.00014979,2]
[344610747,1733611832686,-200.0,0.00014979,2]
[344610749,1733611832695,-200.0,0.00014979,2]
[344610750,1733611832704,-535.46520214,0.00014981,2]
[344610752,1733611832713,-333.2108241,0.00014981,2]
[344610755,1733611832722,-592.80072518,0.00014982,2]
[344610757,1733611832734,-121.15287768,0.00014982,2]
[344610759,1733611832743,-249.90811808,0.00014982,2]
[344610761,1733611832752,-200.0,0.00014982,2]
[344610763,1733611832761,-200.0,0.00014982,2]
[344610765,1733611832770,-789.83306455,0.00014984,2]
[344610767,1733611832779,-249.90811808,0.00014984,2]
[344610769,1733611832788,-301.1991762,0.00014985,2]
[344610771,1733611832797,-592.37479841,0.00014985,2]
[344610773,1733611832806,-592.37479841,0.00014986,2]
[344610775,1733611832815,-789.83306455,0.00014987,2]
[344610776,1733611832824,-200.0,0.00014988,2]
[344610778,1733611832833,-225.89938215,0.00014988,2]
[344610780,1733611832842,-200.0,0.00014988,2]
[344610782,1733611832851,-200.0,0.00014988,2]
[344610784,1733611832860,-592.37479841,0.00014988,2]
[344610786,1733611832869,-333.2108241,0.00014989,2]
[344610788,1733611832878,-200.0,0.00014989,2]
[344610791,1733611832887,-200.0,0.00014989,2]
[344610792,1733611832897,-333.2108241,0.0001499,2]
[344610794,1733611832907,-401.59890161,0.0001499,2]
[344610796,1733611832917,-200.0,0.00014991,2]
[344610798,1733611832926,-200.0,0.00014991,2]
[344610801,1733611832935,-713.95360286,0.00014991,2]
[344610802,1733611832945,-200.0,0.00014992,2]
[344610804,1733611832954,-333.2108241,0.00014993,2]
[344610807,1733611832963,-200.0,0.00014993,2]
[344610809,1733611832974,-444.28109881,0.00014994,2]
[344610810,1733611832984,-200.0,0.00014995,2]
[344610812,1733611832994,-401.59890161,0.00014995,2]
[344610814,1733611833004,-200.0,0.00014995,2]
[344610817,1733611833013,-200.0,0.00014997,2]
[344610818,1733611833022,-225.89938215,0.00014997,2]
[344610820,1733611833032,-713.95360286,0.00014998,2]
[344610822,1733611833041,-225.89938215,0.00014998,2]
[344610824,1733611833051,-225.89938215,0.00014998,2]
[344610826,1733611833061,-592.37479841,0.00014998,2]
[344610828,1733611833070,-789.83306455,0.00014998,2]
[344610830,1733611833081,-200.0,0.00014998,2]
[344610832,1733611833091,-301.1991762,0.00014999,2]
[344610834,1733611833100,-225.89938215,0.00014999,2]
[344610836,1733611833110,-200.0,0.00014999,2]
[344610838,1733611833120,-444.28109881,0.00015,2]
[344610840,1733611833129,-500.0,0.00015,2]
[344610842,1733611833139,-150.0,0.00015067,2]
[344610844,1733611833148,-500.0,0.00015068,2]
[344610846,1733611833158,-500.0,0.00015068,2]
[344610847,1733611833167,-500.0,0.00015068,2]
[344610848,1733611833176,-500.0,0.00015068,2]
[344610849,1733611833186,-500.0,0.00015068,2]
[344610850,1733611833195,-500.0,0.00015068,2]
[344610851,1733611833205,-500.0,0.00015068,2]
[344610852,1733611833214,-500.0,0.00015068,2]
[344610853,1733611833224,-500.0,0.00015068,2]
[344610854,1733611833233,-500.0,0.00015068,2]
[344610855,1733611833243,-500.0,0.00015068,2]
[344610856,1733611833252,-500.0,0.00015068,2]
[344610857,1733611833262,-672.85,0.00015068,2]
[344610858,1733611833271,-672.85,0.00015068,2]
[344610860,1733611833280,-672.85,0.00015068,2]
[344610862,1733611833289,-672.85,0.00015068,2]
[344610864,1733611833298,-672.85,0.00015068,2]
[344610866,1733611833308,-672.85,0.00015068,2]
[344610868,1733611833317,-672.85,0.00015068,2]
[344610870,1733611833326,-672.85,0.00015068,2]
[344610872,1733611833336,-672.85,0.00015068,2]
[344610874,1733611833345,-656.25,0.00015068,2]
[344610876,1733611833360,-656.25,0.00015068,2]
[344610878,1733611833369,-656.25,0.00015068,2]
[344610880,1733611833378,-656.25,0.00015068,2]
[344610882,1733611833388,-656.25,0.00015068,2]
[344610884,1733611833398,-656.25,0.00015068,2]
[344610886,1733611833408,-656.25,0.00015068,2]
[344610888,1733611833418,-656.25,0.00015068,2]
[344610890,1733611833428,-656.25,0.00015068,2]
[344610892,1733611833437,-606.83,0.00015068,2]
[344610894,1733611833447,-606.83,0.00015068,2]
[344610896,1733611833456,-606.83,0.00015068,2]
[344610898,1733611833465,-606.83,0.00015068,2]
[344610900,1733611833475,-606.83,0.00015068,2]
[344610920,1733611833660,-606.83,0.00015068,2]
[344610922,1733611833669,-606.83,0.00015068,2]
[344610924,1733611833680,-606.83,0.00015068,2]
[344610926,1733611833689,-606.83,0.00015068,2]
[344610928,1733611833698,-500.0,0.00015068,2]
[344610930,1733611833708,-500.0,0.00015068,2]
[344610932,1733611833719,-500.0,0.00015068,2]
[344610934,1733611833728,-582.48,0.00015068,2]
[344610936,1733611833738,-500.0,0.00015068,2]
[344610938,1733611833747,-500.0,0.00015068,2]
[344610940,1733611833757,-500.0,0.00015068,2]
[344610942,1733611833767,-1101.95,0.00015068,2]
[344610944,1733611833776,-500.0,0.00015068,2]
[344610946,1733611833786,-500.0,0.00015068,2]
[344610948,1733611833795,-500.0,0.00015068,2]
[344610950,1733611833804,-529.97,0.00015068,2]
[344610951,1733611833814,-500.0,0.00015068,2]
[344610953,1733611833823,-500.0,0.00015068,2]
[344610954,1733611833832,-627.08,0.00015068,2]
[344610956,1733611833841,-500.0,0.00015068,2]
[344610958,1733611833851,-500.0,0.00015068,2]
[344610960,1733611833860,-212.38755686,0.00015068,2]
[344610963,1733611833877,-287.61244314,0.00015068,2]
[344610965,1733611833887,-500.0,0.00015068,2]
[344610967,1733611833896,-300.54306624,0.00015068,2]
[344610969,1733611833913,-199.45693376,0.00015068,2]
[344610971,1733611833923,-1007.69,0.00015068,2]
[344610973,1733611833932,-500.0,0.00015068,2]
[344610975,1733611833942,-500.0,0.00015068,2]
[344610976,1733611833952,-601.05,0.00015068,2]
[344610977,1733611833961,-500.0,0.00015068,2]
[344610978,1733611833971,-518.6,0.00015068,2]
[344610979,1733611833981,-518.6,0.00015068,2]
[344610980,1733611833990,-518.6,0.00015068,2]
[344610981,1733611833999,-518.6,0.00015068,2]
[344610982,1733611834008,-518.6,0.00015068,2]
[344610983,1733611834018,-518.6,0.00015068,2]
[344610984,1733611834027,-518.6,0.00015068,2]
[344610985,1733611834036,-518.6,0.00015068,2]
[344610986,1733611834045,-518.6,0.00015068,2]
[344610987,1733611834054,-500.0,0.00015068,2]
[344610988,1733611834063,-500.0,0.00015068,2]
[344610989,1733611834073,-500.0,0.00015068,2]
[344610990,1733611834082,-500.0,0.00015068,2]
[344610991,1733611834091,-500.0,0.00015068,2]
[344610992,1733611834101,-500.0,0.00015068,2]
[344610993,1733611834111,-500.0,0.00015068,2]
[344610994,1733611834120,-500.0,0.00015068,2]
[344610995,1733611834129,-500.0,0.00015068,2]
[344610996,1733611834138,-314.14507364,0.00015068,2]
[344610997,1733611834151,-185.85492636,0.00015068,2]
[344610998,1733611834160,-500.0,0.00015068,2]
[344610999,1733611834169,-500.0,0.00015068,2]
[344611000,1733611834179,-500.0,0.00015068,2]
[344611001,1733611834188,-500.0,0.00015068,2]
[344611002,1733611834198,-535.75,0.00015068,2]
[344611003,1733611834207,-535.75,0.00015068,2]
[344611004,1733611834218,-535.75,0.00015068,2]
[344611005,1733611834229,-535.75,0.00015068,2]
[344611006,1733611834238,-535.75,0.00015068,2]
[344611007,1733611834247,-535.75,0.00015068,2]
[344611008,1733611834256,-535.75,0.00015068,2]
[344611009,1733611834266,-535.75,0.00015068,2]
[344611010,1733611834276,-535.75,0.00015068,2]
[344611011,1733611834285,-500.0,0.00015068,2]
[344611012,1733611834295,-610.27,0.00015068,2]
[344611013,1733611834304,-610.27,0.00015068,2]
[344611014,1733611834313,-284.85911042,0.00015068,2]
[344611015,1733611834325,-281.26036316,0.00015068,2]
[344611016,1733611834357,-44.15052642,0.00015068,2]
[344611017,1733611834367,-610.27,0.00015068,2]
[344611018,1733611834376,-610.27,0.00015068,2]
[344611019,1733611834387,-610.27,0.00015068,2]
[344611020,1733611834396,-610.27,0.00015068,2]
[344611021,1733611834409,-610.27,0.00015068,2]
[344611022,1733611834418,-610.27,0.00015068,2]
[344611023,1733611834429,-575.51,0.00015068,2]
[344611024,1733611834438,-500.0,0.00015068,2]
[344611025,1733611834448,-500.0,0.00015068,2]
[344611026,1733611834457,-500.0,0.00015068,2]
[344611027,1733611834466,-500.0,0.00015068,2]
[344611028,1733611834475,-500.0,0.00015068,2]
[344611029,1733611834484,-500.0,0.00015068,2]
[344611030,1733611834494,-500.0,0.00015068,2]
[344611031,1733611834503,-500.0,0.00015068,2]
[344611032,1733611834512,-500.0,0.00015068,2]
[344611033,1733611834522,-527.56,0.00015068,2]
[344611034,1733611834531,-500.0,0.00015068,2]
[344611035,1733611834541,-500.0,0.00015068,2]
[344611036,1733611834550,-500.0,0.00015068,2]
[344611037,1733611834560,-500.0,0.00015068,2]
[344611038,1733611834569,-500.0,0.00015068,2]
[344611039,1733611834578,-500.0,0.00015068,2]
[344611040,1733611834588,-500.0,0.00015068,2]
[344611041,1733611834597,-500.0,0.00015068,2]
[344611042,1733611834607,-500.0,0.00015068,2]
[344611043,1733611834617,-500.0,0.00015068,2]
[344611044,1733611834626,-500.0,0.00015068,2]
[344611045,1733611834635,-500.0,0.00015068,2]
[344611046,1733611834645,-500.0,0.00015068,2]
[344611047,1733611834655,-151.58,0.00015068,2]
[344611048,1733611834666,-830.86,0.00015068,2]
[344611049,1733611834675,-688.44,0.00015068,2]
[344611050,1733611834684,-720.04,0.00015068,2]
[344611051,1733611834694,-726.52,0.00015068,2]
[344611052,1733611834703,-935.59,0.000151,2]
[344611053,1733611834712,-469.53,0.00015285,2]
[344611054,1733611834721,-1266.298,0.00015519,2]
[344611055,1733611834731,-1126.617,0.00015519,2]
[344611056,1733611834740,-1894.0,0.00015519,2]
[344611057,1733611834749,-1296.323,0.00015519,2]
[344611058,1733611834758,-1261.774,0.00015519,2]
[344611059,1733611834767,-2888.621,0.00015519,2]
[344611060,1733611834776,-1101.747,0.00015519,2]
[344611061,1733611834786,-150.0,0.00016165,2]
[344611062,1733611834795,-922.08,0.00016537,2]
[344611063,1733611834804,-3624.26,0.00016575,2]
[344611064,1733611834814,-7681.36421941,0.00016595,2]
[344611065,1733611834826,-275.79689294,0.00016595,2]
[344611066,1733611834837,-1930.33,0.00016595,2]
[344611067,1733611834848,-6182.58978977,0.00016595,2]
[344611068,1733611837903,-821.09441618,0.00014968,2]
[344611069,1733611837912,-4123.70509788,0.00016595,2]
[344611070,1733611837922,-1543.9,0.00016618,2]
[344611071,1733611837932,-195.89,0.00016621,2]
[344611072,1733611837941,-463.16,0.00016622,2]
[344611073,1733611837951,-4744.77,0.00016633,2]
[344611074,1733611837965,-150.0,0.00016641,2]
[344611075,1733611837976,-200.0,0.00016674,2]
[344611076,1733611837986,-13184.47905361,0.00016695,2]
[344611077,1733611837997,-4068.32094639,0.00016695,2]
[344611078,1733611838007,-1000.0,0.00016872,2]
[344611079,1733611838016,-1151.16,0.00016921,2]
[344611080,1733611838025,-550.0,0.00017,2]
[344611081,1733611838034,-250.0,0.00017281,2]
[344611082,1733611838045,-1500.0,0.00017453,2]
[344611083,1733611838055,-2000.0,0.00017453,2]
[344611084,1733611838064,-192.32,0.000175,2]
[344611085,1733611838074,-63195.65,0.00017515,2]
[344611086,1733611838084,-469.53,0.00017549,2]
[344611087,1733611838093,-1758.89,0.0001756,2]
[344611088,1733611838102,-172.52257193,0.00017563,2]
[344611089,1733611838112,-1383.39,0.0001766,30]
[344611090,1733611838122,-935.13,0.0001766,2]
[344611091,1733611838131,-1298.05,0.00017689,2]
[344611092,1733611838141,-250.0,0.00017693,2]
[344611093,1733611838150,-1216.0,0.00017718,2]
[344611094,1733611838160,-1852.42,0.0001777,2]
[344611095,1733611838171,-206.21,0.00017815,2]
[344611096,1733611838181,-620.3,0.0001802,2]
[344611097,1733611838190,-525.94,0.0001802,2]
[344611098,1733611838200,-684.38,0.0001802,2]
[344611099,1733611838210,-500.0,0.0001802,2]
[344611100,1733611838220,-500.0,0.0001802,2]
[344611101,1733611838230,-658.75,0.0001802,2]
[344611102,1733611838239,-500.0,0.0001802,2]
[344611103,1733611838249,-500.0,0.0001802,2]
[344611104,1733611838258,-500.0,0.0001802,2]
[344611105,1733611838269,-500.0,0.0001802,2]
[344611106,1733611838279,-500.0,0.0001802,2]
[344611107,1733611838288,-500.0,0.0001802,2]
[344611108,1733611838297,-500.0,0.0001802,2]
[344611109,1733611838307,-500.0,0.0001802,2]
[344611110,1733611838318,-500.0,0.0001802,2]
[344611111,1733611838328,-500.0,0.0001802,2]
[344611112,1733611838338,-500.0,0.0001802,2]
[344611113,1733611838352,-500.0,0.0001802,2]
[344611114,1733611838362,-659.22,0.0001802,2]
[344611115,1733611838372,-500.0,0.0001802,2]
[344611116,1733611838383,-500.0,0.0001802,2]
[344611117,1733611838393,-500.0,0.0001802,2]
[344611118,1733611838403,-500.0,0.0001802,2]
[344611119,1733611838412,-587.75,0.0001802,2]
[344611120,1733611838422,-500.0,0.0001802,2]
[344611121,1733611838432,-705.7,0.0001802,2]
[344611122,1733611838443,-824.21,0.0001802,2]
[344611123,1733611838453,-856.49,0.0001802,2]
[344611124,1733611838464,-500.0,0.0001802,2]
[344611125,1733611838474,-500.0,0.0001802,2]
[344611126,1733611838484,-500.0,0.0001802,2]
[344611127,1733611838493,-500.0,0.0001802,2]
[344611128,1733611838502,-500.0,0.0001802,2]
[344611129,1733611838512,-500.0,0.0001802,2]
[344611130,1733611838521,-500.0,0.0001802,2]
[344611131,1733611838531,-265.23,0.00018217,2]
[344611132,1733611838540,-1216.0,0.00018374,2]
[344611133,1733611838550,-354.954,0.00018415,2]
[344611134,1733611838560,-1262.0,0.00018519,2]
[344611135,1733611838569,-1894.0,0.00018519,2]
[344611136,1733611838578,-1252.0,0.00018519,2]
[344611137,1733611838588,-1167.0,0.00018519,2]
[344611138,1733611838597,-1098.0,0.00018519,2]
[344611139,1733611838606,-265.23,0.00018891,2]
[344611140,1733611838616,-1681.83,0.00018962,7]
[344611141,1733611838625,-1681.83,0.00018962,7]
[344611142,1733611838635,-1681.83,0.00018962,7]
[344611143,1733611838644,-1681.83,0.00018962,7]
[344611144,1733611838654,-500.0,0.00018977,2]
[344611145,1733611838663,-500.0,0.00018977,2]
[344611146,1733611838674,-500.0,0.00018977,2]
[344611147,1733611838683,-500.0,0.00018977,2]
[344611148,1733611838693,-500.0,0.00018977,2]
[344611149,1733611838702,-500.0,0.00018977,2]
[344611150,1733611838712,-500.0,0.00018977,2]
[344611151,1733611838721,-437.57014348,0.00018977,2]
[344611152,1733611838734,-160.44985652,0.00018977,2]
[344611153,1733611838743,-500.0,0.00018977,2]
[344611154,1733611838753,-549.80800497,0.00018977,2]
[344611155,1733611838762,-500.0,0.00018977,2]
[344611156,1733611838771,-503.35,0.00018977,2]
[344611157,1733611838781,-500.0,0.00018977,2]
[344611158,1733611838790,-500.0,0.00018977,2]
[344611159,1733611838799,-365.60713851,0.00018977,2]
[344611160,1733611838811,-134.39286149,0.00018977,2]
[344611161,1733611838820,-500.0,0.00018977,2]
[344611162,1733611838830,-599.02902824,0.00018977,2]
[344611163,1733611838840,-550.88,0.00018977,2]
[344611164,1733611838849,-500.0,0.00018977,2]
[344611165,1733611838859,-288.34915327,0.00018977,2]
[344611166,1733611838870,-211.65084673,0.00018977,2]
[344611167,1733611838880,-500.0,0.00018977,2]
[344611168,1733611838889,-500.0,0.00018977,2]
[344611169,1733611838899,-324.31718192,0.00018977,2]
[344611170,1733611838909,-500.0,0.00018977,2]
[344611171,1733611838920,-500.0,0.00018977,2]
[344611172,1733611838930,-500.0,0.00018977,2]
[344611173,1733611838939,-500.0,0.00018977,2]
[344611174,1733611838949,-500.0,0.00018977,2]
[344611175,1733611838958,-261.73156216,0.00018977,2]
[344611176,1733611838967,-500.0,0.00018977,2]
[344611177,1733611838978,-500.0,0.00018977,2]
[344611178,1733611838987,-589.26,0.00018977,2]
[344611179,1733611838997,-500.0,0.00018977,2]
[344611180,1733611839006,-500.0,0.00018977,2]
[344611181,1733611839016,-582.08,0.00018977,2]
[344611182,1733611839026,-500.0,0.00018977,2]
[344611183,1733611839035,-1200.0,0.00018977,2]
[344611184,1733611839045,-202.66419488,0.00018977,2]
[344611185,1733611839055,-500.0,0.00018977,2]
[344611186,1733611839065,-627.63608634,0.00018977,2]
[344611187,1733611839074,-1000.0,0.00018981,2]
[344611188,1733611839083,-600.0,0.00019,2]
[344611189,1733611839093,-286.57,0.00019,2]
[344611190,1733611839103,-1216.0,0.00019029,2]
[344611191,1733611839117,-182.651081,0.00019121,2]
[344611192,1733611839131,-863.99,0.00019121,2]
[344611193,1733611839141,-500.0,0.00019121,2]
[344611194,1733611839151,-684.06,0.00019121,2]
[344611195,1733611839160,-500.0,0.00019121,2]
[344611196,1733611839172,-500.0,0.00019121,2]
[344611197,1733611839182,-726.97,0.00019121,2]
[344611198,1733611839192,-500.0,0.00019121,2]
[344611199,1733611839202,-500.0,0.00019121,2]
[344611200,1733611839211,-728.02,0.00019121,2]
[344611201,1733611839221,-500.0,0.00019121,2]
[344611202,1733611839230,-682.28,0.00019121,2]
[344611203,1733611839380,-500.0,0.00019121,2]
[344611204,1733611839391,-500.0,0.00019121,2]
[344611205,1733611839403,-836.23,0.00019121,2]
[344611206,1733611839412,-500.0,0.00019121,2]
[344611207,1733611839424,-500.0,0.00019121,2]
[344611208,1733611839435,-500.0,0.00019121,2]
[344611209,1733611839444,-506.71,0.00019121,2]
[344611210,1733611839453,-500.0,0.00019121,2]
[344611211,1733611839463,-500.0,0.00019121,2]
[344611212,1733611839473,-570.28,0.00019121,2]
[344611213,1733611839483,-4000.0,0.00019178,2]
[344611214,1733611839492,-604.57,0.00019178,2]
[344611215,1733611839502,-1681.83,0.00019235,7]
[344611216,1733611839512,-1681.83,0.00019235,7]
[344611217,1733611839521,-1681.83,0.00019508,7]
[344611218,1733611839532,-1681.83,0.00019508,7]
[344611219,1733611839542,-265.23,0.00019565,2]
[344611220,1733611839552,-634.99148468,0.00019599,2]
[344611221,1733611839562,-500.00000002,0.00019599,2]
[344611222,1733611839571,-37399.98756228,0.000196,2]
[344611223,1733611839584,-1275.63470079,0.000196,2]
[344611224,1733611839607,-767.57775385,0.000196,2]
[344611225,1733611839617,-1216.0,0.00019685,2]
[344611226,1733611839626,-1681.83,0.00019781,7]
[344611227,1733611839636,-1681.83,0.00019781,7]
[344611228,1733611839645,-611.78,0.00019799,2]
[344611229,1733611839655,-500.0,0.00019799,2]
[344611230,1733611839665,-500.0,0.00019799,2]
[344611231,1733611839680,-536.64,0.00019799,2]
[344611232,1733611839690,-500.0,0.00019799,2]
[344611233,1733611839700,-626.89,0.00019799,2]
[344611234,1733611839709,-500.0,0.00019799,2]
[344611235,1733611839718,-500.0,0.00019799,2]
[344611236,1733611839728,-500.0,0.00019799,2]
[344611237,1733611839738,-500.0,0.00019799,2]
[344611238,1733611839748,-500.0,0.00019799,2]
[344611239,1733611839758,-500.0,0.00019799,2]
[344611240,1733611839767,-500.0,0.00019799,2]
[344611241,1733611839777,-500.0,0.00019799,2]
[344611242,1733611839786,-560.49,0.00019799,2]
[344611243,1733611839796,-519.16,0.00019799,2]
[344611244,1733611839806,-576.6,0.00019799,2]
[344611245,1733611839815,-500.0,0.00019799,2]
[344611246,1733611839825,-500.0,0.00019799,2]
[344611247,1733611839835,-500.0,0.00019799,2]
[344611248,1733611839845,-500.0,0.00019799,2]
[344611250,1733611839855,-500.0,0.00019799,2]